Workbook

Sheet R8.3
B1: 行政区別の世帯数と人口
G2: (令和8年3月末日現在)
B4: 校区 | C4: 区名 | D4: 世帯数 | E4: 人口 | H4: 65歳以上の 割合（％）
E5: 男 | F5: 女 | G5: 全体
B6: 腹赤 | C6: 平原 | D6: 348 | E6: 350 | F6: 280 | G6: =SUM(E6:F6) -> 630 | H6: 32.2
C7: 清源寺 | D7: 615 | E7: 671 | F7: 633 | G7: =SUM(E7:F7) -> 1,304 | H7: 37.1
C8: 上沖洲 | D8: 351 | E8: 359 | F8: 289 | G8: 648 | H8: 42.9
C9: 腹赤 | D9: 387 | E9: 414 | F9: 466 | G9: 880 | H9: 32.3
C10: 腹赤新町 | D10: 86 | E10: 77 | F10: 98 | G10: 175 | H10: 50.9
C11: 校区合計 | D11: 1,787 | E11: 1,871 | F11: 1,766 | G11: =SUM(G6:G10) -> 3,637 | H11: 36.8
B12: 六栄 | C12: 折地 | D12: 216 | E12: 214 | F12: 230 | G12: =SUM(E12:F12) -> 444 | H12: 43.7
C13: 赤崎 | D13: 127 | E13: 141 | F13: 136 | G13: =SUM(E13:F13) -> 277 | H13: 47.3
C14: 高田 | D14: 59 | E14: 63 | F14: 69 | G14: 132 | H14: 37.1
C15: 鷲巣 | D15: 216 | E15: 223 | F15: 203 | G15: 426 | H15: 47.9
C16: 立野 | D16: 165 | E16: 159 | F16: 157 | G16: 316 | H16: 49.1
C17: 向野 | D17: 415 | E17: 467 | F17: 470 | G17: 937 | H17: 34.2
C18: 宮崎 | D18: 149 | E18: 154 | F18: 157 | G18: 311 | H18: 45.7
C19: 赤田 | D19: 90 | E19: 88 | F19: 101 | G19: 189 | H19: 46.0
C20: 葛輪 | D20: 95 | E20: 91 | F20: 73 | G20: 164 | H20: 51.2
C21: 永方 | D21: 104 | E21: 87 | F21: 121 | G21: 208 | H21: 51.9
C22: 塩屋 | D22: 103 | E22: 90 | F22: 98 | G22: 188 | H22: 46.3
C23: 向野北 | D23: 344 | E23: 410 | F23: 186 | G23: 596 | H23: 0.7
C24: 古城 | D24: 286 | E24: 328 | F24: 340 | G24: 668 | H24: 37.3
C25: 校区合計 | D25: 2,368 | E25: 2,514 | F25: 2,341 | G25: 4,855 | H25: 37.4
B26: 清里 | C26: 建浜 | D26: 359 | E26: 419 | F26: 406 | G26: =SUM(E26:F26) -> 825 | H26: 33.1
C27: 駅通 | D27: 177 | E27: 192 | F27: 167 | G27: =SUM(E27:F27) -> 359 | H27: 27.3
C28: 梅田 | D28: 264 | E28: 270 | F28: 283 | G28: 553 | H28: 40.7
C29: 校区合計 | D29: 800 | E29: 881 | F29: =SUM(F26:F28) -> 856 | G29: =SUM(G26:G28) -> 1,737 | H29: 34.3
B30: 長洲 | C30: 出町 | D30: 238 | E30: 250 | F30: 244 | G30: =SUM(E30:F30) -> 494 | H30: 34.6
C31: 新町 | D31: 154 | E31: 154 | F31: 160 | G31: =SUM(E31:F31) -> 314 | H31: 44.9
C32: 西新町 | D32: 30 | E32: 31 | F32: 24 | G32: 55 | H32: 50.9
C33: 宮ノ町 | D33: 173 | E33: 174 | F33: 150 | G33: 324 | H33: 36.4
C34: 松原 | D34: 105 | E34: 100 | F34: 91 | G34: 191 | H34: 39.3
C35: 新山 | D35: 290 | E35: 260 | F35: 288 | G35: 548 | H35: 50.2
C36: 宝町 | D36: 121 | E36: 101 | F36: 106 | G36: 207 | H36: 53.1
C37: 磯町 | D37: 105 | E37: 93 | F37: 82 | G37: 175 | H37: 51.4
C38: 上町 | D38: 78 | E38: 81 | F38: 68 | G38: 149 | H38: 40.9
C39: 中町 | D39: 65 | E39: 52 | F39: 53 | G39: 105 | H39: 52.4
C40: 下本 | D40: 50 | E40: 31 | F40: 41 | G40: 72 | H40: 55.6
C41: 今町 | D41: 40 | E41: 41 | F41: 54 | G41: 95 | H41: 49.5
C42: 下東 | D42: 281 | E42: 288 | F42: 290 | G42: 578 | H42: 29.9
C43: 西荒神 | D43: 60 | E43: 55 | F43: 52 | G43: 107 | H43: 52.3
C44: 東荒神 | D44: 424 | E44: 432 | F44: 390 | G44: 822 | H44: 28.2
C45: 大明神 | D45: 327 | E45: 315 | F45: 255 | G45: 570 | H45: 35.6
C46: 校区合計 | D46: 2,542 | E46: 2,459 | F46: =SUM(F30:F45) -> 2,348 | G46: 4,807 | H46: 39.0
B48: 全体 | C48: =D11+D25+D29+D46 -> 7,497 | E48: =G11+G25+G29+G46 -> 15,036 | G48: 37.4%
D49: （世帯数） | F49: （人口） | H49: （65歳以上の割合）

Sheet R8.2
B1: 行政区別の世帯数と人口
G2: (令和8年2月末日現在)
B4: 校区 | C4: 区名 | D4: 世帯数 | E4: 人口 | H4: 65歳以上の 割合（％）
E5: 男 | F5: 女 | G5: 全体
B6: 腹赤 | C6: 平原 | D6: 347 | E6: 348 | F6: 281 | G6: =SUM(E6:F6) -> 629 | H6: 32.3
C7: 清源寺 | D7: 613 | E7: 671 | F7: 631 | G7: =SUM(E7:F7) -> 1,302 | H7: 37.3
C8: 上沖洲 | D8: 355 | E8: 364 | F8: 290 | G8: 654 | H8: 42.7
C9: 腹赤 | D9: 390 | E9: 419 | F9: 468 | G9: 887 | H9: 32.2
C10: 腹赤新町 | D10: 86 | E10: 77 | F10: 98 | G10: 175 | H10: 50.9
C11: 校区合計 | D11: 1,791 | E11: 1,879 | F11: 1,768 | G11: =SUM(G6:G10) -> 3,647 | H11: 36.8
B12: 六栄 | C12: 折地 | D12: 216 | E12: 213 | F12: 227 | G12: =SUM(E12:F12) -> 440 | H12: 44.5
C13: 赤崎 | D13: 131 | E13: 142 | F13: 140 | G13: =SUM(E13:F13) -> 282 | H13: 46.8
C14: 高田 | D14: 59 | E14: 63 | F14: 70 | G14: 133 | H14: 36.8
C15: 鷲巣 | D15: 213 | E15: 222 | F15: 204 | G15: 426 | H15: 47.9
C16: 立野 | D16: 165 | E16: 159 | F16: 159 | G16: 318 | H16: 49.1
C17: 向野 | D17: 415 | E17: 464 | F17: 470 | G17: 934 | H17: 34.3
C18: 宮崎 | D18: 152 | E18: 160 | F18: 157 | G18: 317 | H18: 44.8
C19: 赤田 | D19: 90 | E19: 90 | F19: 102 | G19: 192 | H19: 45.8
C20: 葛輪 | D20: 96 | E20: 92 | F20: 74 | G20: 166 | H20: 51.2
C21: 永方 | D21: 104 | E21: 88 | F21: 121 | G21: 209 | H21: 51.7
C22: 塩屋 | D22: 104 | E22: 91 | F22: 97 | G22: 188 | H22: 46.3
C23: 向野北 | D23: 342 | E23: 410 | F23: 188 | G23: 598 | H23: 0.7
C24: 古城 | D24: 285 | E24: 328 | F24: 341 | G24: 669 | H24: 37.1
C25: 校区合計 | D25: 2,371 | E25: 2,521 | F25: =SUM(F12:F24) -> 2,350 | G25: 4,871 | H25: 37.3
B26: 清里 | C26: 建浜 | D26: 362 | E26: 425 | F26: 415 | G26: =SUM(E26:F26) -> 840 | H26: 32.4
C27: 駅通 | D27: 177 | E27: 193 | F27: 167 | G27: =SUM(E27:F27) -> 360 | H27: 26.9
C28: 梅田 | D28: 264 | E28: 268 | F28: 283 | G28: 551 | H28: 40.5
C29: 校区合計 | D29: 803 | E29: 886 | F29: =SUM(F26:F28) -> 865 | G29: =SUM(G26:G28) -> 1,751 | H29: 33.8
B30: 長洲 | C30: 出町 | D30: 238 | E30: 253 | F30: 243 | G30: =SUM(E30:F30) -> 496 | H30: 34.5
C31: 新町 | D31: 154 | E31: 154 | F31: 161 | G31: =SUM(E31:F31) -> 315 | H31: 44.8
C32: 西新町 | D32: 30 | E32: 31 | F32: 24 | G32: 55 | H32: 50.9
C33: 宮ノ町 | D33: 171 | E33: 173 | F33: 153 | G33: 326 | H33: 36.2
C34: 松原 | D34: 105 | E34: 100 | F34: 91 | G34: 191 | H34: 39.3
C35: 新山 | D35: 288 | E35: 263 | F35: 290 | G35: 553 | H35: 50.1
C36: 宝町 | D36: 121 | E36: 101 | F36: 106 | G36: 207 | H36: 52.7
C37: 磯町 | D37: 108 | E37: 96 | F37: 84 | G37: 180 | H37: 50.0
C38: 上町 | D38: 76 | E38: 80 | F38: 67 | G38: 147 | H38: 41.5
C39: 中町 | D39: 65 | E39: 52 | F39: 53 | G39: 105 | H39: 52.4
C40: 下本 | D40: 50 | E40: 31 | F40: 40 | G40: 71 | H40: 56.3
C41: 今町 | D41: 40 | E41: 41 | F41: 54 | G41: 95 | H41: 49.5
C42: 下東 | D42: 279 | E42: 288 | F42: 286 | G42: 574 | H42: 30.1
C43: 西荒神 | D43: 60 | E43: 55 | F43: 53 | G43: 108 | H43: 51.9
C44: 東荒神 | D44: 409 | E44: 417 | F44: 389 | G44: 806 | H44: 28.7
C45: 大明神 | D45: 320 | E45: 311 | F45: 255 | G45: 566 | H45: 36.2
C46: 校区合計 | D46: 2,515 | E46: 2,447 | F46: =SUM(F30:F45) -> 2,349 | G46: 4,796 | H46: 39.1
B48: 全体 | C48: =D11+D25+D29+D46 -> 7,480 | E48: =G11+G25+G29+G46 -> 15,065 | G48: 37.4%
D49: （世帯数） | F49: （人口） | H49: （65歳以上の割合）

Sheet R8.1
B1: 行政区別の世帯数と人口
G2: (令和8年1月末日現在)
B4: 校区 | C4: 区名 | D4: 世帯数 | E4: 人口 | H4: 65歳以上の 割合（％）
E5: 男 | F5: 女 | G5: 全体
B6: 腹赤 | C6: 平原 | D6: 340 | E6: 341 | F6: 281 | G6: =SUM(E6:F6) -> 622 | H6: 32.5
C7: 清源寺 | D7: 614 | E7: 672 | F7: 628 | G7: =SUM(E7:F7) -> 1,300 | H7: 37.5
C8: 上沖洲 | D8: 356 | E8: 364 | F8: 293 | G8: 657 | H8: 42.8
C9: 腹赤 | D9: 387 | E9: 420 | F9: 468 | G9: 888 | H9: 32.1
C10: 腹赤新町 | D10: 86 | E10: 77 | F10: 98 | G10: 175 | H10: 50.9
C11: 校区合計 | D11: 1,783 | E11: 1,874 | F11: 1,768 | G11: =SUM(G6:G10) -> 3,642 | H11: 36.9
B12: 六栄 | C12: 折地 | D12: 216 | E12: 214 | F12: 227 | G12: =SUM(E12:F12) -> 441 | H12: 44.7
C13: 赤崎 | D13: 129 | E13: 141 | F13: 139 | G13: =SUM(E13:F13) -> 280 | H13: 47.1
C14: 高田 | D14: 59 | E14: 63 | F14: 70 | G14: 133 | H14: 36.8
C15: 鷲巣 | D15: 214 | E15: 224 | F15: 204 | G15: 428 | H15: 47.4
C16: 立野 | D16: 162 | E16: 156 | F16: 159 | G16: 315 | H16: 49.5
C17: 向野 | D17: 415 | E17: 465 | F17: 470 | G17: 935 | H17: 34.2
C18: 宮崎 | D18: 145 | E18: 153 | F18: 158 | G18: 311 | H18: 45.7
C19: 赤田 | D19: 90 | E19: 90 | F19: 102 | G19: 192 | H19: 45.8
C20: 葛輪 | D20: 97 | E20: 94 | F20: 74 | G20: 168 | H20: 50.6
C21: 永方 | D21: 104 | E21: 88 | F21: 122 | G21: 210 | H21: 51.0
C22: 塩屋 | D22: 104 | E22: 91 | F22: 97 | G22: 188 | H22: 46.3
C23: 向野北 | D23: 342 | E23: 410 | F23: 187 | G23: 597 | H23: 0.7
C24: 古城 | D24: 285 | E24: 331 | F24: 342 | G24: 673 | H24: 37.1
C25: 校区合計 | D25: 2,362 | E25: 2,520 | F25: =SUM(F12:F24) -> 2,351 | G25: =SUM(G12:G24) -> 4,871 | H25: 37.4
B26: 清里 | C26: 建浜 | D26: 363 | E26: 426 | F26: 416 | G26: =SUM(E26:F26) -> 842 | H26: 32.3
C27: 駅通 | D27: 176 | E27: 192 | F27: 167 | G27: =SUM(E27:F27) -> 359 | H27: 27.0
C28: 梅田 | D28: 263 | E28: 267 | F28: 283 | G28: 550 | H28: 40.5
C29: 校区合計 | D29: 802 | E29: 885 | F29: =SUM(F26:F28) -> 866 | G29: =SUM(G26:G28) -> 1,751 | H29: 33.8
B30: 長洲 | C30: 出町 | D30: 240 | E30: 256 | F30: 243 | G30: =SUM(E30:F30) -> 499 | H30: 34.3
C31: 新町 | D31: 154 | E31: 154 | F31: 161 | G31: =SUM(E31:F31) -> 315 | H31: 44.8
C32: 西新町 | D32: 30 | E32: 31 | F32: 24 | G32: 55 | H32: 50.9
C33: 宮ノ町 | D33: 167 | E33: 168 | F33: 150 | G33: 318 | H33: 36.8
C34: 松原 | D34: 103 | E34: 99 | F34: 91 | G34: 190 | H34: 39.5
C35: 新山 | D35: 287 | E35: 263 | F35: 289 | G35: 552 | H35: 50.2
C36: 宝町 | D36: 122 | E36: 102 | F36: 106 | G36: 208 | H36: 52.9
C37: 磯町 | D37: 111 | E37: 97 | F37: 86 | G37: 183 | H37: 50.3
C38: 上町 | D38: 76 | E38: 80 | F38: 67 | G38: 147 | H38: 41.5
C39: 中町 | D39: 65 | E39: 52 | F39: 53 | G39: 105 | H39: 52.4
C40: 下本 | D40: 51 | E40: 32 | F40: 40 | G40: 72 | H40: 54.2
C41: 今町 | D41: 40 | E41: 41 | F41: 54 | G41: 95 | H41: 49.5
C42: 下東 | D42: 279 | E42: 291 | F42: 289 | G42: 580 | H42: 29.8
C43: 西荒神 | D43: 60 | E43: 55 | F43: 53 | G43: 108 | H43: 51.9
C44: 東荒神 | D44: 408 | E44: 416 | F44: 389 | G44: 805 | H44: 28.7
C45: 大明神 | D45: 318 | E45: 310 | F45: 255 | G45: 565 | H45: 36.3
C46: 校区合計 | D46: 2,511 | E46: 2,447 | F46: =SUM(F30:F45) -> 2,350 | G46: =SUM(G30:G45) -> 4,797 | H46: 39.1
B48: 全体 | C48: =D11+D25+D29+D46 -> 7,458 | E48: =G11+G25+G29+G46 -> 15,061 | G48: 37.4%
D49: （世帯数） | F49: （人口） | H49: （65歳以上の割合）

Sheet R7.12
B1: 行政区別の世帯数と人口
G2: (令和7年12月末日現在)
B4: 校区 | C4: 区名 | D4: 世帯数 | E4: 人口 | H4: 65歳以上の 割合（％）
E5: 男 | F5: 女 | G5: 全体
B6: 腹赤 | C6: 平原 | D6: 341 | E6: 340 | F6: 283 | G6: =SUM(E6:F6) -> 623 | H6: 32.1
C7: 清源寺 | D7: 619 | E7: 673 | F7: 632 | G7: =SUM(E7:F7) -> 1,305 | H7: 36.9
C8: 上沖洲 | D8: 353 | E8: 362 | F8: 292 | G8: 654 | H8: 43.0
C9: 腹赤 | D9: 384 | E9: 418 | F9: 469 | G9: 887 | H9: 32.2
C10: 腹赤新町 | D10: 87 | E10: 77 | F10: 99 | G10: 176 | H10: 50.0
C11: 校区合計 | D11: 1,784 | E11: 1,870 | F11: 1,775 | G11: =SUM(G6:G10) -> 3,645 | H11: 36.7
B12: 六栄 | C12: 折地 | D12: 215 | E12: 212 | F12: 228 | G12: =SUM(E12:F12) -> 440 | H12: 44.8
C13: 赤崎 | D13: 129 | E13: 141 | F13: 139 | G13: =SUM(E13:F13) -> 280 | H13: 46.4
C14: 高田 | D14: 59 | E14: 63 | F14: 68 | G14: 131 | H14: 37.4
C15: 鷲巣 | D15: 216 | E15: 225 | F15: 205 | G15: 430 | H15: 47.0
C16: 立野 | D16: 162 | E16: 156 | F16: 160 | G16: 316 | H16: 49.4
C17: 向野 | D17: 415 | E17: 466 | F17: 470 | G17: 936 | H17: 34.5
C18: 宮崎 | D18: 145 | E18: 154 | F18: 158 | G18: 312 | H18: 45.8
C19: 赤田 | D19: 90 | E19: 91 | F19: 102 | G19: 193 | H19: 45.6
C20: 葛輪 | D20: 99 | E20: 96 | F20: 74 | G20: 170 | H20: 50.0
C21: 永方 | D21: 104 | E21: 89 | F21: 122 | G21: 211 | H21: 50.7
C22: 塩屋 | D22: 105 | E22: 91 | F22: 99 | G22: 190 | H22: 45.8
C23: 向野北 | D23: 341 | E23: 408 | F23: 186 | G23: 594 | H23: 0.7
C24: 古城 | D24: 287 | E24: 330 | F24: 344 | G24: 674 | H24: 37.4
C25: 校区合計 | D25: 2,367 | E25: 2,522 | F25: =SUM(F12:F24) -> 2,355 | G25: =SUM(G12:G24) -> 4,877 | H25: 37.4
B26: 清里 | C26: 建浜 | D26: 358 | E26: 425 | F26: 416 | G26: =SUM(E26:F26) -> 841 | H26: 32.1
C27: 駅通 | D27: 177 | E27: 193 | F27: 168 | G27: =SUM(E27:F27) -> 361 | H27: 26.9
C28: 梅田 | D28: 262 | E28: 266 | F28: 283 | G28: 549 | H28: 40.4
C29: 校区合計 | D29: 797 | E29: =SUM(E26:E28) -> 884 | F29: =SUM(F26:F28) -> 867 | G29: =SUM(G26:G28) -> 1,751 | H29: 33.6
B30: 長洲 | C30: 出町 | D30: 241 | E30: 256 | F30: 242 | G30: =SUM(E30:F30) -> 498 | H30: 34.3
C31: 新町 | D31: 155 | E31: 155 | F31: 161 | G31: =SUM(E31:F31) -> 316 | H31: 44.6
C32: 西新町 | D32: 31 | E32: 32 | F32: 24 | G32: 56 | H32: 50.0
C33: 宮ノ町 | D33: 168 | E33: 169 | F33: 151 | G33: 320 | H33: 36.9
C34: 松原 | D34: 103 | E34: 100 | F34: 91 | G34: 191 | H34: 38.7
C35: 新山 | D35: 287 | E35: 264 | F35: 289 | G35: 553 | H35: 49.9
C36: 宝町 | D36: 122 | E36: 102 | F36: 106 | G36: 208 | H36: 52.9
C37: 磯町 | D37: 110 | E37: 97 | F37: 86 | G37: 183 | H37: 50.3
C38: 上町 | D38: 76 | E38: 80 | F38: 67 | G38: 147 | H38: 40.8
C39: 中町 | D39: 66 | E39: 53 | F39: 54 | G39: 107 | H39: 52.3
C40: 下本 | D40: 50 | E40: 32 | F40: 40 | G40: 72 | H40: 55.6
C41: 今町 | D41: 41 | E41: 41 | F41: 55 | G41: 96 | H41: 50.0
C42: 下東 | D42: 280 | E42: 292 | F42: 289 | G42: 581 | H42: 29.8
C43: 西荒神 | D43: 60 | E43: 55 | F43: 53 | G43: 108 | H43: 51.9
C44: 東荒神 | D44: 412 | E44: 418 | F44: 391 | G44: 809 | H44: 28.7
C45: 大明神 | D45: 318 | E45: 312 | F45: 256 | G45: 568 | H45: 36.3
C46: 校区合計 | D46: 2,520 | E46: 2,458 | F46: =SUM(F30:F45) -> 2,355 | G46: =SUM(G30:G45) -> 4,813 | H46: 39.1
B48: 全体 | C48: =D11+D25+D29+D46 -> 7,468 | E48: =G11+G25+G29+G46 -> 15,086 | G48: 37.3%
D49: （世帯数） | F49: （人口） | H49: （65歳以上の割合）

Sheet R7.11
B1: 行政区別の世帯数と人口
G2: (令和7年11月末日現在)
B4: 校区 | C4: 区名 | D4: 世帯数 | E4: 人口 | H4: 65歳以上の 割合（％）
E5: 男 | F5: 女 | G5: 全体
B6: 腹赤 | C6: 平原 | D6: 337 | E6: 333 | F6: 284 | G6: =SUM(E6:F6) -> 617 | H6: 32.1
C7: 清源寺 | D7: 622 | E7: 673 | F7: 637 | G7: =SUM(E7:F7) -> 1,310 | H7: 37.0
C8: 上沖洲 | D8: 353 | E8: 362 | F8: 293 | G8: 655 | H8: 42.7
C9: 腹赤 | D9: 384 | E9: 416 | F9: 468 | G9: 884 | H9: 32.4
C10: 腹赤新町 | D10: 87 | E10: 77 | F10: 99 | G10: 176 | H10: 50.0
C11: 校区合計 | D11: 1,783 | E11: 1,861 | F11: 1,781 | G11: =SUM(G6:G10) -> 3,642 | H11: 36.7
B12: 六栄 | C12: 折地 | D12: 215 | E12: 211 | F12: 228 | G12: =SUM(E12:F12) -> 439 | H12: 45.1
C13: 赤崎 | D13: 129 | E13: 141 | F13: 139 | G13: =SUM(E13:F13) -> 280 | H13: 46.4
C14: 高田 | D14: 59 | E14: 63 | F14: 68 | G14: 131 | H14: 37.4
C15: 鷲巣 | D15: 217 | E15: 225 | F15: 207 | G15: 432 | H15: 47.0
C16: 立野 | D16: 163 | E16: 157 | F16: 160 | G16: 317 | H16: 49.5
C17: 向野 | D17: 412 | E17: 463 | F17: 469 | G17: 932 | H17: 34.7
C18: 宮崎 | D18: 146 | E18: 155 | F18: 158 | G18: 313 | H18: 45.7
C19: 赤田 | D19: 89 | E19: 91 | F19: 101 | G19: 192 | H19: 45.8
C20: 葛輪 | D20: 99 | E20: 95 | F20: 74 | G20: 169 | H20: 50.3
C21: 永方 | D21: 103 | E21: 89 | F21: 121 | G21: 210 | H21: 51.0
C22: 塩屋 | D22: 106 | E22: 92 | F22: 100 | G22: 192 | H22: 45.3
C23: 向野北 | D23: 343 | E23: 411 | F23: 189 | G23: 600 | H23: 0.7
C24: 古城 | D24: 287 | E24: 330 | F24: 345 | G24: 675 | H24: 36.9
C25: 校区合計 | D25: 2,368 | E25: 2,523 | F25: =SUM(F12:F24) -> 2,359 | G25: =SUM(G12:G24) -> 4,882 | H25: 37.3
B26: 清里 | C26: 建浜 | D26: 360 | E26: 425 | F26: 418 | G26: =SUM(E26:F26) -> 843 | H26: 32.0
C27: 駅通 | D27: 177 | E27: 196 | F27: 168 | G27: =SUM(E27:F27) -> 364 | H27: 27.2
C28: 梅田 | D28: 263 | E28: 271 | F28: 281 | G28: 552 | H28: 41.1
C29: 校区合計 | D29: 800 | E29: =SUM(E26:E28) -> 892 | F29: =SUM(F26:F28) -> 867 | G29: =SUM(G26:G28) -> 1,759 | H29: 33.9
B30: 長洲 | C30: 出町 | D30: 238 | E30: 255 | F30: 242 | G30: =SUM(E30:F30) -> 497 | H30: 34.6
C31: 新町 | D31: 156 | E31: 157 | F31: 162 | G31: =SUM(E31:F31) -> 319 | H31: 44.5
C32: 西新町 | D32: 31 | E32: 32 | F32: 25 | G32: 57 | H32: 50.9
C33: 宮ノ町 | D33: 168 | E33: 168 | F33: 149 | G33: 317 | H33: 37.2
C34: 松原 | D34: 104 | E34: 101 | F34: 92 | G34: 193 | H34: 38.9
C35: 新山 | D35: 288 | E35: 267 | F35: 290 | G35: 557 | H35: 49.7
C36: 宝町 | D36: 121 | E36: 102 | F36: 105 | G36: 207 | H36: 52.7
C37: 磯町 | D37: 110 | E37: 97 | F37: 86 | G37: 183 | H37: 50.3
C38: 上町 | D38: 76 | E38: 80 | F38: 67 | G38: 147 | H38: 40.8
C39: 中町 | D39: 66 | E39: 53 | F39: 54 | G39: 107 | H39: 51.4
C40: 下本 | D40: 50 | E40: 32 | F40: 40 | G40: 72 | H40: 55.6
C41: 今町 | D41: 41 | E41: 41 | F41: 55 | G41: 96 | H41: 50.0
C42: 下東 | D42: 280 | E42: 292 | F42: 289 | G42: 581 | H42: 29.6
C43: 西荒神 | D43: 60 | E43: 54 | F43: 53 | G43: 107 | H43: 52.3
C44: 東荒神 | D44: 416 | E44: 420 | F44: 392 | G44: 812 | H44: 28.6
C45: 大明神 | D45: 320 | E45: 316 | F45: 256 | G45: 572 | H45: 35.8
C46: 校区合計 | D46: 2,525 | E46: 2,467 | F46: =SUM(F30:F45) -> 2,357 | G46: =SUM(G30:G45) -> 4,824 | H46: 39.0
B48: 全体 | C48: =D11+D25+D29+D46 -> 7,476 | E48: =G11+G25+G29+G46 -> 15,107 | G48: 37.3%
D49: （世帯数） | F49: （人口） | H49: （65歳以上の割合）

Sheet R7.10
B1: 行政区別の世帯数と人口
G2: (令和7年10月末日現在)
B4: 校区 | C4: 区名 | D4: 世帯数 | E4: 人口 | H4: 65歳以上の 割合（％）
E5: 男 | F5: 女 | G5: 全体
B6: 腹赤 | C6: 平原 | D6: 338 | E6: 333 | F6: 285 | G6: =SUM(E6:F6) -> 618 | H6: 31.9
C7: 清源寺 | D7: 618 | E7: 671 | F7: 636 | G7: =SUM(E7:F7) -> 1,307 | H7: 37.0
C8: 上沖洲 | D8: 352 | E8: 364 | F8: 294 | G8: 658 | H8: 42.4
C9: 腹赤 | D9: 384 | E9: 413 | F9: 467 | G9: 880 | H9: 32.5
C10: 腹赤新町 | D10: 89 | E10: 79 | F10: 99 | G10: 178 | H10: 49.4
C11: 校区合計 | D11: 1,781 | E11: 1,860 | F11: 1,781 | G11: =SUM(G6:G10) -> 3,641 | H11: 36.6
B12: 六栄 | C12: 折地 | D12: 215 | E12: 210 | F12: 228 | G12: =SUM(E12:F12) -> 438 | H12: 45.2
C13: 赤崎 | D13: 128 | E13: 141 | F13: 139 | G13: =SUM(E13:F13) -> 280 | H13: 46.4
C14: 高田 | D14: 60 | E14: 65 | F14: 70 | G14: 135 | H14: 36.3
C15: 鷲巣 | D15: 216 | E15: 223 | F15: 208 | G15: 431 | H15: 47.1
C16: 立野 | D16: 164 | E16: 157 | F16: 161 | G16: 318 | H16: 49.7
C17: 向野 | D17: 411 | E17: 459 | F17: 465 | G17: 924 | H17: 35.4
C18: 宮崎 | D18: 147 | E18: 156 | F18: 159 | G18: 315 | H18: 45.7
C19: 赤田 | D19: 88 | E19: 90 | F19: 101 | G19: 191 | H19: 46.1
C20: 葛輪 | D20: 99 | E20: 96 | F20: 74 | G20: 170 | H20: 50.0
C21: 永方 | D21: 101 | E21: 87 | F21: 120 | G21: 207 | H21: 51.7
C22: 塩屋 | D22: 104 | E22: 92 | F22: 98 | G22: 190 | H22: 45.8
C23: 向野北 | D23: 345 | E23: 413 | F23: 191 | G23: 604 | H23: 0.7
C24: 古城 | D24: 287 | E24: 328 | F24: 348 | G24: 676 | H24: 36.8
C25: 校区合計 | D25: 2,365 | E25: =SUM(E12:E24) -> 2,517 | F25: =SUM(F12:F24) -> 2,362 | G25: =SUM(G12:G24) -> 4,879 | H25: 37.5
B26: 清里 | C26: 建浜 | D26: 360 | E26: 426 | F26: 415 | G26: =SUM(E26:F26) -> 841 | H26: 32.1
C27: 駅通 | D27: 176 | E27: 196 | F27: 168 | G27: =SUM(E27:F27) -> 364 | H27: 27.5
C28: 梅田 | D28: 265 | E28: 271 | F28: 283 | G28: 554 | H28: 41.3
C29: 校区合計 | D29: 801 | E29: =SUM(E26:E28) -> 893 | F29: =SUM(F26:F28) -> 866 | G29: =SUM(G26:G28) -> 1,759 | H29: 34.1
B30: 長洲 | C30: 出町 | D30: 239 | E30: 255 | F30: 243 | G30: =SUM(E30:F30) -> 498 | H30: 34.7
C31: 新町 | D31: 158 | E31: 158 | F31: 163 | G31: =SUM(E31:F31) -> 321 | H31: 44.2
C32: 西新町 | D32: 31 | E32: 32 | F32: 25 | G32: 57 | H32: 50.9
C33: 宮ノ町 | D33: 169 | E33: 169 | F33: 150 | G33: 319 | H33: 37.0
C34: 松原 | D34: 104 | E34: 101 | F34: 92 | G34: 193 | H34: 38.9
C35: 新山 | D35: 288 | E35: 266 | F35: 290 | G35: 556 | H35: 49.8
C36: 宝町 | D36: 121 | E36: 102 | F36: 105 | G36: 207 | H36: 52.7
C37: 磯町 | D37: 109 | E37: 96 | F37: 86 | G37: 182 | H37: 51.1
C38: 上町 | D38: 76 | E38: 80 | F38: 67 | G38: 147 | H38: 40.8
C39: 中町 | D39: 68 | E39: 54 | F39: 57 | G39: 111 | H39: 48.6
C40: 下本 | D40: 50 | E40: 32 | F40: 40 | G40: 72 | H40: 55.6
C41: 今町 | D41: 41 | E41: 41 | F41: 55 | G41: 96 | H41: 50.0
C42: 下東 | D42: 279 | E42: 292 | F42: 286 | G42: 578 | H42: 29.6
C43: 西荒神 | D43: 62 | E43: 56 | F43: 53 | G43: 109 | H43: 51.4
C44: 東荒神 | D44: 408 | E44: 411 | F44: 389 | G44: 800 | H44: 29.0
C45: 大明神 | D45: 314 | E45: 310 | F45: 262 | G45: 572 | H45: 36.0
C46: 校区合計 | D46: 2,517 | E46: 2,455 | F46: =SUM(F30:F45) -> 2,363 | G46: =SUM(G30:G45) -> 4,818 | H46: 39.1
B48: 全体 | C48: =D11+D25+D29+D46 -> 7,464 | E48: =G11+G25+G29+G46 -> 15,097 | G48: 37.4%
D49: （世帯数） | F49: （人口） | H49: （65歳以上の割合）

Sheet R7.9
B1: 行政区別の世帯数と人口
G2: (令和7年9月末日現在)
B4: 校区 | C4: 区名 | D4: 世帯数 | E4: 人口 | H4: 65歳以上の 割合（％）
E5: 男 | F5: 女 | G5: 全体
B6: 腹赤 | C6: 平原 | D6: 317 | E6: 316 | F6: 281 | G6: =SUM(E6:F6) -> 597 | H6: 33.0
C7: 清源寺 | D7: 619 | E7: 674 | F7: 637 | G7: =SUM(E7:F7) -> 1,311 | H7: 36.9
C8: 上沖洲 | D8: 347 | E8: 357 | F8: 296 | G8: 653 | H8: 43.0
C9: 腹赤 | D9: 385 | E9: 414 | F9: 468 | G9: 882 | H9: 32.4
C10: 腹赤新町 | D10: 87 | E10: 77 | F10: 100 | G10: 177 | H10: 49.7
C11: 校区合計 | D11: 1,755 | E11: 1,838 | F11: 1,782 | G11: =SUM(G6:G10) -> 3,620 | H11: 36.9
B12: 六栄 | C12: 折地 | D12: 214 | E12: 208 | F12: 228 | G12: =SUM(E12:F12) -> 436 | H12: 45.4
C13: 赤崎 | D13: 128 | E13: 142 | F13: 139 | G13: =SUM(E13:F13) -> 281 | H13: 46.6
C14: 高田 | D14: 60 | E14: 65 | F14: 70 | G14: 135 | H14: 36.3
C15: 鷲巣 | D15: 216 | E15: 225 | F15: 207 | G15: 432 | H15: 47.9
C16: 立野 | D16: 164 | E16: 157 | F16: 162 | G16: 319 | H16: 49.8
C17: 向野 | D17: 413 | E17: 460 | F17: 470 | G17: 930 | H17: 35.5
C18: 宮崎 | D18: 148 | E18: 156 | F18: 160 | G18: 316 | H18: 45.6
C19: 赤田 | D19: 88 | E19: 91 | F19: 101 | G19: 192 | H19: 45.8
C20: 葛輪 | D20: 97 | E20: 95 | F20: 74 | G20: 169 | H20: 49.1
C21: 永方 | D21: 102 | E21: 88 | F21: 121 | G21: 209 | H21: 51.7
C22: 塩屋 | D22: 103 | E22: 90 | F22: 99 | G22: 189 | H22: 45.5
C23: 向野北 | D23: 344 | E23: 408 | F23: 191 | G23: 599 | H23: 0.7
C24: 古城 | D24: 284 | E24: 329 | F24: 345 | G24: 674 | H24: 36.8
C25: 校区合計 | D25: 2,361 | E25: =SUM(E12:E24) -> 2,514 | F25: =SUM(F12:F24) -> 2,367 | G25: =SUM(G12:G24) -> 4,881 | H25: 37.6
B26: 清里 | C26: 建浜 | D26: 354 | E26: 420 | F26: 414 | G26: =SUM(E26:F26) -> 834 | H26: 32.1
C27: 駅通 | D27: 170 | E27: 194 | F27: 163 | G27: =SUM(E27:F27) -> 357 | H27: 28.3
C28: 梅田 | D28: 267 | E28: 271 | F28: 284 | G28: 555 | H28: 41.3
C29: 校区合計 | D29: 791 | E29: =SUM(E26:E28) -> 885 | F29: =SUM(F26:F28) -> 861 | G29: =SUM(G26:G28) -> 1,746 | H29: 34.2
B30: 長洲 | C30: 出町 | D30: 241 | E30: 257 | F30: 243 | G30: =SUM(E30:F30) -> 500 | H30: 34.6
C31: 新町 | D31: 156 | E31: 155 | F31: 164 | G31: =SUM(E31:F31) -> 319 | H31: 44.8
C32: 西新町 | D32: 31 | E32: 32 | F32: 25 | G32: 57 | H32: 50.9
C33: 宮ノ町 | D33: 169 | E33: 168 | F33: 151 | G33: 319 | H33: 37.0
C34: 松原 | D34: 104 | E34: 101 | F34: 92 | G34: 193 | H34: 38.9
C35: 新山 | D35: 288 | E35: 266 | F35: 290 | G35: 556 | H35: 49.6
C36: 宝町 | D36: 120 | E36: 101 | F36: 105 | G36: 206 | H36: 52.9
C37: 磯町 | D37: 109 | E37: 96 | F37: 86 | G37: 182 | H37: 51.1
C38: 上町 | D38: 81 | E38: 85 | F38: 67 | G38: 152 | H38: 39.5
C39: 中町 | D39: 65 | E39: 53 | F39: 57 | G39: 110 | H39: 49.1
C40: 下本 | D40: 50 | E40: 32 | F40: 40 | G40: 72 | H40: 55.6
C41: 今町 | D41: 41 | E41: 41 | F41: 55 | G41: 96 | H41: 50.0
C42: 下東 | D42: 278 | E42: 290 | F42: 287 | G42: 577 | H42: 29.6
C43: 西荒神 | D43: 62 | E43: 56 | F43: 53 | G43: 109 | H43: 51.4
C44: 東荒神 | D44: 407 | E44: 411 | F44: 389 | G44: 800 | H44: 29.0
C45: 大明神 | D45: 312 | E45: 308 | F45: 263 | G45: 571 | H45: 36.4
C46: 校区合計 | D46: 2,514 | E46: 2,452 | F46: =SUM(F30:F45) -> 2,367 | G46: =SUM(G30:G45) -> 4,819 | H46: 39.1
B48: 全体 | C48: =D11+D25+D29+D46 -> 7,421 | E48: =G11+G25+G29+G46 -> 15,066 | G48: 37.5%
D49: （世帯数） | F49: （人口） | H49: （65歳以上の割合）

Sheet R7.8
B1: 行政区別の世帯数と人口
G2: (令和7年8月末日現在)
B4: 校区 | C4: 区名 | D4: 世帯数 | E4: 人口 | H4: 65歳以上の 割合（％）
E5: 男 | F5: 女 | G5: 全体
B6: 腹赤 | C6: 平原 | D6: 320 | E6: 319 | F6: 283 | G6: =SUM(E6:F6) -> 602 | H6: 32.7
C7: 清源寺 | D7: 621 | E7: 679 | F7: 638 | G7: =SUM(E7:F7) -> 1,317 | H7: 36.8
C8: 上沖洲 | D8: 347 | E8: 357 | F8: 296 | G8: 653 | H8: 43.2
C9: 腹赤 | D9: 378 | E9: 414 | F9: 459 | G9: 873 | H9: 32.6
C10: 腹赤新町 | D10: 87 | E10: 77 | F10: 100 | G10: 177 | H10: 49.7
C11: 校区合計 | D11: 1,753 | E11: 1,846 | F11: 1,776 | G11: =SUM(G6:G10) -> 3,622 | H11: 36.9
B12: 六栄 | C12: 折地 | D12: 214 | E12: 207 | F12: 229 | G12: =SUM(E12:F12) -> 436 | H12: 45.4
C13: 赤崎 | D13: 128 | E13: 142 | F13: 138 | G13: =SUM(E13:F13) -> 280 | H13: 47.1
C14: 高田 | D14: 60 | E14: 65 | F14: 70 | G14: 135 | H14: 35.6
C15: 鷲巣 | D15: 216 | E15: 225 | F15: 207 | G15: 432 | H15: 47.9
C16: 立野 | D16: 164 | E16: 157 | F16: 162 | G16: 319 | H16: 49.8
C17: 向野 | D17: 417 | E17: 465 | F17: 469 | G17: 934 | H17: 35.3
C18: 宮崎 | D18: 148 | E18: 155 | F18: 161 | G18: 316 | H18: 44.9
C19: 赤田 | D19: 88 | E19: 91 | F19: 101 | G19: 192 | H19: 45.8
C20: 葛輪 | D20: 97 | E20: 95 | F20: 74 | G20: 169 | H20: 49.1
C21: 永方 | D21: 103 | E21: 88 | F21: 122 | G21: 210 | H21: 51.9
C22: 塩屋 | D22: 102 | E22: 89 | F22: 99 | G22: 188 | H22: 45.7
C23: 向野北 | D23: 313 | E23: 375 | F23: 190 | G23: 565 | H23: 0.7
C24: 古城 | D24: 280 | E24: 328 | F24: 339 | G24: 667 | H24: 37.2
C25: 校区合計 | D25: 2,330 | E25: =SUM(E12:E24) -> 2,482 | F25: =SUM(F12:F24) -> 2,361 | G25: =SUM(G12:G24) -> 4,843 | H25: 37.9
B26: 清里 | C26: 建浜 | D26: 354 | E26: 417 | F26: 413 | G26: =SUM(E26:F26) -> 830 | H26: 32.4
C27: 駅通 | D27: 170 | E27: 197 | F27: 163 | G27: =SUM(E27:F27) -> 360 | H27: 28.1
C28: 梅田 | D28: 267 | E28: 273 | F28: 283 | G28: 556 | H28: 41.2
C29: 校区合計 | D29: 791 | E29: =SUM(E26:E28) -> 887 | F29: =SUM(F26:F28) -> 859 | G29: =SUM(G26:G28) -> 1,746 | H29: 34.3
B30: 長洲 | C30: 出町 | D30: 244 | E30: 261 | F30: 244 | G30: =SUM(E30:F30) -> 505 | H30: 34.3
C31: 新町 | D31: 155 | E31: 154 | F31: 164 | G31: =SUM(E31:F31) -> 318 | H31: 44.7
C32: 西新町 | D32: 31 | E32: 31 | F32: 25 | G32: 56 | H32: 51.8
C33: 宮ノ町 | D33: 169 | E33: 168 | F33: 151 | G33: 319 | H33: 37.0
C34: 松原 | D34: 103 | E34: 99 | F34: 90 | G34: 189 | H34: 39.7
C35: 新山 | D35: 287 | E35: 267 | F35: 291 | G35: 558 | H35: 49.8
C36: 宝町 | D36: 120 | E36: 101 | F36: 105 | G36: 206 | H36: 52.4
C37: 磯町 | D37: 106 | E37: 93 | F37: 87 | G37: 180 | H37: 51.1
C38: 上町 | D38: 81 | E38: 85 | F38: 67 | G38: 152 | H38: 39.5
C39: 中町 | D39: 65 | E39: 53 | F39: 57 | G39: 110 | H39: 49.1
C40: 下本 | D40: 48 | E40: 30 | F40: 40 | G40: 70 | H40: 57.1
C41: 今町 | D41: 41 | E41: 41 | F41: 55 | G41: 96 | H41: 49.0
C42: 下東 | D42: 278 | E42: 291 | F42: 287 | G42: 578 | H42: 29.6
C43: 西荒神 | D43: 62 | E43: 56 | F43: 55 | G43: 111 | H43: 50.5
C44: 東荒神 | D44: 407 | E44: 411 | F44: 390 | G44: 801 | H44: 28.8
C45: 大明神 | D45: 316 | E45: 311 | F45: 264 | G45: 575 | H45: 36.2
C46: 校区合計 | D46: 2,513 | E46: 2,452 | F46: =SUM(F30:F45) -> 2,372 | G46: =SUM(G30:G45) -> 4,824 | H46: 39.0
B48: 全体 | C48: =D11+D25+D29+D46 -> 7,387 | E48: =G11+G25+G29+G46 -> 15,035 | G48: 37.6%
D49: （世帯数） | F49: （人口） | H49: （65歳以上の割合）

Sheet R7.7
B1: 行政区別の世帯数と人口
G2: (令和7年7月末日現在)
B4: 校区 | C4: 区名 | D4: 世帯数 | E4: 人口 | H4: 65歳以上の 割合（％）
E5: 男 | F5: 女 | G5: 全体
B6: 腹赤 | C6: 平原 | D6: 321 | E6: 315 | F6: 282 | G6: =SUM(E6:F6) -> 597 | H6: 32.8
C7: 清源寺 | D7: 621 | E7: 680 | F7: 640 | G7: =SUM(E7:F7) -> 1,320 | H7: 36.7
C8: 上沖洲 | D8: 328 | E8: 338 | F8: 297 | G8: 635 | H8: 44.1
C9: 腹赤 | D9: 377 | E9: 414 | F9: 458 | G9: 872 | H9: 32.8
C10: 腹赤新町 | D10: 87 | E10: 77 | F10: 100 | G10: 177 | H10: 49.7
C11: 校区合計 | D11: 1,734 | E11: 1,824 | F11: 1,777 | G11: =SUM(G6:G10) -> 3,601 | H11: 37.1
B12: 六栄 | C12: 折地 | D12: 211 | E12: 204 | F12: 228 | G12: =SUM(E12:F12) -> 432 | H12: 45.8
C13: 赤崎 | D13: 128 | E13: 143 | F13: 139 | G13: =SUM(E13:F13) -> 282 | H13: 47.2
C14: 高田 | D14: 60 | E14: 66 | F14: 72 | G14: 138 | H14: 35.5
C15: 鷲巣 | D15: 216 | E15: 225 | F15: 207 | G15: 432 | H15: 47.7
C16: 立野 | D16: 164 | E16: 157 | F16: 162 | G16: 319 | H16: 49.8
C17: 向野 | D17: 417 | E17: 461 | F17: 471 | G17: 932 | H17: 35.4
C18: 宮崎 | D18: 148 | E18: 156 | F18: 161 | G18: 317 | H18: 44.8
C19: 赤田 | D19: 88 | E19: 91 | F19: 101 | G19: 192 | H19: 45.8
C20: 葛輪 | D20: 97 | E20: 95 | F20: 74 | G20: 169 | H20: 49.1
C21: 永方 | D21: 104 | E21: 88 | F21: 123 | G21: 211 | H21: 51.7
C22: 塩屋 | D22: 101 | E22: 89 | F22: 98 | G22: 187 | H22: 46.0
C23: 向野北 | D23: 333 | E23: 394 | F23: 193 | G23: 587 | H23: 0.7
C24: 古城 | D24: 290 | E24: 338 | F24: 339 | G24: 677 | H24: 36.2
C25: 校区合計 | D25: 2,357 | E25: =SUM(E12:E24) -> 2,507 | F25: =SUM(F12:F24) -> 2,368 | G25: =SUM(G12:G24) -> 4,875 | H25: 37.6
B26: 清里 | C26: 建浜 | D26: 353 | E26: 417 | F26: 414 | G26: =SUM(E26:F26) -> 831 | H26: 32.1
C27: 駅通 | D27: 176 | E27: 197 | F27: 169 | G27: =SUM(E27:F27) -> 366 | H27: 27.6
C28: 梅田 | D28: 265 | E28: 276 | F28: 283 | G28: 559 | H28: 41.7
C29: 校区合計 | D29: 794 | E29: =SUM(E26:E28) -> 890 | F29: =SUM(F26:F28) -> 866 | G29: =SUM(G26:G28) -> 1,756 | H29: 34.2
B30: 長洲 | C30: 出町 | D30: 243 | E30: 261 | F30: 241 | G30: =SUM(E30:F30) -> 502 | H30: 34.5
C31: 新町 | D31: 155 | E31: 154 | F31: 164 | G31: =SUM(E31:F31) -> 318 | H31: 44.3
C32: 西新町 | D32: 31 | E32: 31 | F32: 25 | G32: 56 | H32: 51.8
C33: 宮ノ町 | D33: 167 | E33: 168 | F33: 149 | G33: 317 | H33: 36.9
C34: 松原 | D34: 104 | E34: 99 | F34: 91 | G34: 190 | H34: 39.5
C35: 新山 | D35: 286 | E35: 265 | F35: 292 | G35: 557 | H35: 49.9
C36: 宝町 | D36: 122 | E36: 103 | F36: 106 | G36: 209 | H36: 52.2
C37: 磯町 | D37: 105 | E37: 91 | F37: 86 | G37: 177 | H37: 52.5
C38: 上町 | D38: 81 | E38: 85 | F38: 68 | G38: 153 | H38: 39.9
C39: 中町 | D39: 65 | E39: 53 | F39: 57 | G39: 110 | H39: 49.1
C40: 下本 | D40: 46 | E40: 30 | F40: 39 | G40: 69 | H40: 58.0
C41: 今町 | D41: 41 | E41: 41 | F41: 55 | G41: 96 | H41: 49.0
C42: 下東 | D42: 278 | E42: 290 | F42: 287 | G42: 577 | H42: 29.5
C43: 西荒神 | D43: 61 | E43: 55 | F43: 55 | G43: 110 | H43: 50.9
C44: 東荒神 | D44: 407 | E44: 412 | F44: 393 | G44: 805 | H44: 28.7
C45: 大明神 | D45: 316 | E45: 310 | F45: 266 | G45: 576 | H45: 36.1
C46: 校区合計 | D46: =SUM(D30:D45) -> 2,508 | E46: =SUM(E30:E45) -> 2,448 | F46: =SUM(F30:F45) -> 2,374 | G46: =SUM(G30:G45) -> 4,822 | H46: 39.0
B48: 全体 | C48: =D11+D25+D29+D46 -> 7,393 | E48: =G11+G25+G29+G46 -> 15,054 | G48: 37.5%
D49: （世帯数） | F49: （人口） | H49: （65歳以上の割合）

Sheet R7.6
B1: 行政区別の世帯数と人口
G2: (令和7年6月末日現在)
B4: 校区 | C4: 区名 | D4: 世帯数 | E4: 人口 | H4: 65歳以上の 割合（％）
E5: 男 | F5: 女 | G5: 全体
B6: 腹赤 | C6: 平原 | D6: 320 | E6: 314 | F6: 284 | G6: =SUM(E6:F6) -> 598 | H6: 32.6
C7: 清源寺 | D7: 618 | E7: 680 | F7: 642 | G7: =SUM(E7:F7) -> 1,322 | H7: 37.0
C8: 上沖洲 | D8: 338 | E8: 347 | F8: 297 | G8: 644 | H8: 43.6
C9: 腹赤 | D9: 387 | E9: 416 | F9: 468 | G9: 884 | H9: 32.5
C10: 腹赤新町 | D10: 87 | E10: 77 | F10: 101 | G10: 178 | H10: 50.0
C11: 校区合計 | D11: 1,750 | E11: 1,834 | F11: 1,792 | G11: =SUM(G6:G10) -> 3,626 | H11: 37.0
B12: 六栄 | C12: 折地 | D12: 212 | E12: 203 | F12: 230 | G12: =SUM(E12:F12) -> 433 | H12: 46.0
C13: 赤崎 | D13: 129 | E13: 145 | F13: 140 | G13: =SUM(E13:F13) -> 285 | H13: 46.3
C14: 高田 | D14: 60 | E14: 66 | F14: 72 | G14: 138 | H14: 35.5
C15: 鷲巣 | D15: 216 | E15: 226 | F15: 207 | G15: 433 | H15: 47.8
C16: 立野 | D16: 165 | E16: 158 | F16: 162 | G16: 320 | H16: 50.0
C17: 向野 | D17: 419 | E17: 465 | F17: 474 | G17: 939 | H17: 35.5
C18: 宮崎 | D18: 146 | E18: 155 | F18: 160 | G18: 315 | H18: 45.1
C19: 赤田 | D19: 88 | E19: 91 | F19: 102 | G19: 193 | H19: 45.6
C20: 葛輪 | D20: 97 | E20: 95 | F20: 74 | G20: 169 | H20: 49.1
C21: 永方 | D21: 103 | E21: 86 | F21: 121 | G21: 207 | H21: 52.7
C22: 塩屋 | D22: 102 | E22: 90 | F22: 97 | G22: 187 | H22: 46.5
C23: 向野北 | D23: 336 | E23: 395 | F23: 192 | G23: 587 | H23: 0.7
C24: 古城 | D24: 292 | E24: 341 | F24: 341 | G24: 682 | H24: 36.1
C25: 校区合計 | D25: 2,365 | E25: =SUM(E12:E24) -> 2,516 | F25: =SUM(F12:F24) -> 2,372 | G25: =SUM(G12:G24) -> 4,888 | H25: 37.6
B26: 清里 | C26: 建浜 | D26: 352 | E26: 414 | F26: 416 | G26: =SUM(E26:F26) -> 830 | H26: 32.4
C27: 駅通 | D27: 177 | E27: 197 | F27: 170 | G27: =SUM(E27:F27) -> 367 | H27: 27.5
C28: 梅田 | D28: 265 | E28: 276 | F28: 283 | G28: 559 | H28: 41.5
C29: 校区合計 | D29: =SUM(D26:D28) -> 794 | E29: =SUM(E26:E28) -> 887 | F29: =SUM(F26:F28) -> 869 | G29: =SUM(G26:G28) -> 1,756 | H29: 34.3
B30: 長洲 | C30: 出町 | D30: 243 | E30: 262 | F30: 242 | G30: =SUM(E30:F30) -> 504 | H30: 34.9
C31: 新町 | D31: 155 | E31: 154 | F31: 164 | G31: =SUM(E31:F31) -> 318 | H31: 44.3
C32: 西新町 | D32: 31 | E32: 31 | F32: 25 | G32: 56 | H32: 51.8
C33: 宮ノ町 | D33: 156 | E33: 157 | F33: 150 | G33: 307 | H33: 38.4
C34: 松原 | D34: 104 | E34: 99 | F34: 91 | G34: 190 | H34: 39.5
C35: 新山 | D35: 287 | E35: 264 | F35: 289 | G35: 553 | H35: 50.3
C36: 宝町 | D36: 122 | E36: 103 | F36: 106 | G36: 209 | H36: 51.7
C37: 磯町 | D37: 106 | E37: 93 | F37: 86 | G37: 179 | H37: 52.0
C38: 上町 | D38: 80 | E38: 84 | F38: 68 | G38: 152 | H38: 40.1
C39: 中町 | D39: 64 | E39: 52 | F39: 57 | G39: 109 | H39: 47.7
C40: 下本 | D40: 45 | E40: 29 | F40: 39 | G40: 68 | H40: 58.8
C41: 今町 | D41: 41 | E41: 41 | F41: 55 | G41: 96 | H41: 49.0
C42: 下東 | D42: 278 | E42: 288 | F42: 291 | G42: 579 | H42: 29.0
C43: 西荒神 | D43: 60 | E43: 54 | F43: 55 | G43: 109 | H43: 50.5
C44: 東荒神 | D44: 408 | E44: 413 | F44: 395 | G44: 808 | H44: 28.7
C45: 大明神 | D45: 313 | E45: 307 | F45: 266 | G45: 573 | H45: 36.3
C46: 校区合計 | D46: =SUM(D30:D45) -> 2,493 | E46: =SUM(E30:E45) -> 2,431 | F46: =SUM(F30:F45) -> 2,379 | G46: =SUM(G30:G45) -> 4,810 | H46: 39.1
B48: 全体 | C48: =D11+D25+D29+D46 -> 7,402 | E48: =G11+G25+G29+G46 -> 15,080 | G48: 37.6%
D49: （世帯数） | F49: （人口） | H49: （65歳以上の割合）

Sheet R7.5
B1: 行政区別の世帯数と人口
G2: (令和7年5月末日現在)
B4: 校区 | C4: 区名 | D4: 世帯数 | E4: 人口 | H4: 65歳以上の 割合（％）
E5: 男 | F5: 女 | G5: 全体
B6: 腹赤 | C6: 平原 | D6: 319 | E6: 314 | F6: 283 | G6: =SUM(E6:F6) -> 597 | H6: 32.7
C7: 清源寺 | D7: 623 | E7: 685 | F7: 642 | G7: =SUM(E7:F7) -> 1,327 | H7: 37.0
C8: 上沖洲 | D8: 356 | E8: 365 | F8: 298 | G8: 663 | H8: 42.4
C9: 腹赤 | D9: 384 | E9: 413 | F9: 471 | G9: 884 | H9: 32.5
C10: 腹赤新町 | D10: 87 | E10: 77 | F10: 101 | G10: 178 | H10: 49.4
C11: 校区合計 | D11: 1,769 | E11: 1,854 | F11: 1,795 | G11: =SUM(G6:G10) -> 3,649 | H11: 36.8
B12: 六栄 | C12: 折地 | D12: 211 | E12: 202 | F12: 229 | G12: =SUM(E12:F12) -> 431 | H12: 46.2
C13: 赤崎 | D13: 128 | E13: 144 | F13: 140 | G13: =SUM(E13:F13) -> 284 | H13: 45.8
C14: 高田 | D14: 61 | E14: 67 | F14: 72 | G14: 139 | H14: 35.3
C15: 鷲巣 | D15: 215 | E15: 229 | F15: 209 | G15: 438 | H15: 47.0
C16: 立野 | D16: 165 | E16: 158 | F16: 163 | G16: 321 | H16: 49.2
C17: 向野 | D17: 418 | E17: 464 | F17: 472 | G17: 936 | H17: 35.4
C18: 宮崎 | D18: 146 | E18: 153 | F18: 161 | G18: 314 | H18: 45.2
C19: 赤田 | D19: 89 | E19: 92 | F19: 102 | G19: 194 | H19: 45.9
C20: 葛輪 | D20: 97 | E20: 95 | F20: 74 | G20: 169 | H20: 49.1
C21: 永方 | D21: 103 | E21: 86 | F21: 121 | G21: 207 | H21: 52.2
C22: 塩屋 | D22: 102 | E22: 89 | F22: 98 | G22: 187 | H22: 44.9
C23: 向野北 | D23: 337 | E23: 395 | F23: 191 | G23: 586 | H23: 0.5
C24: 古城 | D24: 295 | E24: 343 | F24: 344 | G24: 687 | H24: 35.4
C25: 校区合計 | D25: =SUM(D12:D24) -> 2,367 | E25: =SUM(E12:E24) -> 2,517 | F25: =SUM(F12:F24) -> 2,376 | G25: =SUM(G12:G24) -> 4,893 | H25: 37.3
B26: 清里 | C26: 建浜 | D26: 352 | E26: 416 | F26: 412 | G26: =SUM(E26:F26) -> 828 | H26: 32.6
C27: 駅通 | D27: 177 | E27: 198 | F27: 171 | G27: =SUM(E27:F27) -> 369 | H27: 27.4
C28: 梅田 | D28: 263 | E28: 274 | F28: 284 | G28: 558 | H28: 41.8
C29: 校区合計 | D29: =SUM(D26:D28) -> 792 | E29: =SUM(E26:E28) -> 888 | F29: =SUM(F26:F28) -> 867 | G29: =SUM(G26:G28) -> 1,755 | H29: 34.4
B30: 長洲 | C30: 出町 | D30: 242 | E30: 264 | F30: 240 | G30: =SUM(E30:F30) -> 504 | H30: 34.9
C31: 新町 | D31: 155 | E31: 154 | F31: 164 | G31: =SUM(E31:F31) -> 318 | H31: 44.3
C32: 西新町 | D32: 31 | E32: 32 | F32: 25 | G32: 57 | H32: 50.9
C33: 宮ノ町 | D33: 156 | E33: 157 | F33: 150 | G33: 307 | H33: 38.4
C34: 松原 | D34: 105 | E34: 99 | F34: 92 | G34: 191 | H34: 39.8
C35: 新山 | D35: 288 | E35: 265 | F35: 289 | G35: 554 | H35: 50.2
C36: 宝町 | D36: 120 | E36: 100 | F36: 107 | G36: 207 | H36: 52.7
C37: 磯町 | D37: 106 | E37: 93 | F37: 86 | G37: 179 | H37: 51.4
C38: 上町 | D38: 81 | E38: 85 | F38: 68 | G38: 153 | H38: 39.9
C39: 中町 | D39: 64 | E39: 52 | F39: 57 | G39: 109 | H39: 47.7
C40: 下本 | D40: 45 | E40: 29 | F40: 39 | G40: 68 | H40: 58.8
C41: 今町 | D41: 41 | E41: 41 | F41: 55 | G41: 96 | H41: 49.0
C42: 下東 | D42: 268 | E42: 288 | F42: 282 | G42: 570 | H42: 29.5
C43: 西荒神 | D43: 60 | E43: 54 | F43: 55 | G43: 109 | H43: 50.5
C44: 東荒神 | D44: 403 | E44: 408 | F44: 395 | G44: 803 | H44: 29.0
C45: 大明神 | D45: 313 | E45: 308 | F45: 266 | G45: 574 | H45: 36.4
C46: 校区合計 | D46: =SUM(D30:D45) -> 2,478 | E46: =SUM(E30:E45) -> 2,429 | F46: =SUM(F30:F45) -> 2,370 | G46: =SUM(G30:G45) -> 4,799 | H46: 39.3
B48: 全体 | C48: =D11+D25+D29+D46 -> 7,406 | E48: =G11+G25+G29+G46 -> 15,096 | G48: 37.5%
D49: （世帯数） | F49: （人口） | H49: （65歳以上の割合）

Sheet R7.4
B1: 行政区別の世帯数と人口
G2: (令和7年4月末日現在)
B4: 校区 | C4: 区名 | D4: 世帯数 | E4: 人口 | H4: 65歳以上の 割合（％）
E5: 男 | F5: 女 | G5: 全体
B6: 腹赤 | C6: 平原 | D6: 319 | E6: 313 | F6: 281 | G6: =SUM(E6:F6) -> 594 | H6: 32.7
C7: 清源寺 | D7: 622 | E7: 686 | F7: 642 | G7: =SUM(E7:F7) -> 1,328 | H7: 36.7
C8: 上沖洲 | D8: 357 | E8: 366 | F8: 300 | G8: 666 | H8: 42.3
C9: 腹赤 | D9: 385 | E9: 416 | F9: 470 | G9: 886 | H9: 32.6
C10: 腹赤新町 | D10: 82 | E10: 78 | F10: 96 | G10: 174 | H10: 51.1
C11: 校区合計 | D11: =SUM(D6:D10) -> 1,765 | E11: =SUM(E6:E10) -> 1,859 | F11: =SUM(F6:F10) -> 1,789 | G11: =SUM(G6:G10) -> 3,648 | H11: 36.8
B12: 六栄 | C12: 折地 | D12: 211 | E12: 203 | F12: 230 | G12: =SUM(E12:F12) -> 433 | H12: 46.0
C13: 赤崎 | D13: 128 | E13: 144 | F13: 139 | G13: =SUM(E13:F13) -> 283 | H13: 45.9
C14: 高田 | D14: 61 | E14: 68 | F14: 73 | G14: 141 | H14: 34.8
C15: 鷲巣 | D15: 215 | E15: 230 | F15: 209 | G15: 439 | H15: 47.4
C16: 立野 | D16: 166 | E16: 158 | F16: 168 | G16: 326 | H16: 48.8
C17: 向野 | D17: 417 | E17: 465 | F17: 469 | G17: 934 | H17: 35.5
C18: 宮崎 | D18: 149 | E18: 159 | F18: 163 | G18: 322 | H18: 44.7
C19: 赤田 | D19: 87 | E19: 91 | F19: 102 | G19: 193 | H19: 45.6
C20: 葛輪 | D20: 97 | E20: 95 | F20: 74 | G20: 169 | H20: 49.1
C21: 永方 | D21: 103 | E21: 86 | F21: 121 | G21: 207 | H21: 51.7
C22: 塩屋 | D22: 103 | E22: 90 | F22: 98 | G22: 188 | H22: 44.7
C23: 向野北 | D23: 342 | E23: 399 | F23: 188 | G23: 587 | H23: 0.5
C24: 古城 | D24: 296 | E24: 348 | F24: 342 | G24: 690 | H24: 35.4
C25: 校区合計 | D25: =SUM(D12:D24) -> 2,375 | E25: =SUM(E12:E24) -> 2,536 | F25: =SUM(F12:F24) -> 2,376 | G25: =SUM(G12:G24) -> 4,912 | H25: 37.3
B26: 清里 | C26: 建浜 | D26: 352 | E26: 418 | F26: 415 | G26: =SUM(E26:F26) -> 833 | H26: 32.2
C27: 駅通 | D27: 174 | E27: 196 | F27: 171 | G27: =SUM(E27:F27) -> 367 | H27: 27.8
C28: 梅田 | D28: 264 | E28: 274 | F28: 285 | G28: 559 | H28: 42.0
C29: 校区合計 | D29: =SUM(D26:D28) -> 790 | E29: =SUM(E26:E28) -> 888 | F29: =SUM(F26:F28) -> 871 | G29: =SUM(G26:G28) -> 1,759 | H29: 34.4
B30: 長洲 | C30: 出町 | D30: 241 | E30: 263 | F30: 240 | G30: =SUM(E30:F30) -> 503 | H30: 34.8
C31: 新町 | D31: 155 | E31: 154 | F31: 164 | G31: =SUM(E31:F31) -> 318 | H31: 44.3
C32: 西新町 | D32: 30 | E32: 31 | F32: 25 | G32: 56 | H32: 51.8
C33: 宮ノ町 | D33: 153 | E33: 154 | F33: 151 | G33: 305 | H33: 38.4
C34: 松原 | D34: 106 | E34: 100 | F34: 93 | G34: 193 | H34: 40.4
C35: 新山 | D35: 287 | E35: 265 | F35: 287 | G35: 552 | H35: 50.4
C36: 宝町 | D36: 120 | E36: 100 | F36: 107 | G36: 207 | H36: 52.7
C37: 磯町 | D37: 110 | E37: 96 | F37: 87 | G37: 183 | H37: 50.8
C38: 上町 | D38: 81 | E38: 84 | F38: 69 | G38: 153 | H38: 40.5
C39: 中町 | D39: 65 | E39: 53 | F39: 57 | G39: 110 | H39: 48.2
C40: 下本 | D40: 48 | E40: 30 | F40: 41 | G40: 71 | H40: 56.3
C41: 今町 | D41: 42 | E41: 41 | F41: 56 | G41: 97 | H41: 49.5
C42: 下東 | D42: 270 | E42: 288 | F42: 285 | G42: 573 | H42: 29.3
C43: 西荒神 | D43: 60 | E43: 54 | F43: 55 | G43: 109 | H43: 50.5
C44: 東荒神 | D44: 404 | E44: 410 | F44: 398 | G44: 808 | H44: 29.1
C45: 大明神 | D45: 310 | E45: 310 | F45: 261 | G45: 571 | H45: 36.4
C46: 校区合計 | D46: =SUM(D30:D45) -> 2,482 | E46: =SUM(E30:E45) -> 2,433 | F46: =SUM(F30:F45) -> 2,376 | G46: =SUM(G30:G45) -> 4,809 | H46: 39.3
B48: 全体 | C48: =D11+D25+D29+D46 -> 7,412 | E48: =G11+G25+G29+G46 -> 15,128 | G48: 37.5%
D49: （世帯数） | F49: （人口） | H49: （65歳以上の割合）
